Cogmind - Beta 16 @@@ ROGUE MODE // 2025.12.02 @ 21:37:50 Player: ktur Result: Destroyed by S-10 Pest with Light Assault Rifle Performance ------------- Evolutions (0) 0 Regions Visited (3) 600 Robots Destroyed (17) 85 Value Destroyed (387) 387 Prototype IDs (14) 280 Alien Tech Used (0) 0 Bonus (0) 0 TOTAL SCORE: 1352 Bonus ------- None Cogmind --------- Core Integrity 0/250 Matter 63/300 Energy 250/250 System Corruption 0% Temperature Cool (0) Movement Rolling (105) Ox1 Location -10/Subcaves Parts ------- > --- POWER (1) -------- Ion Engine > --- PROPULSION (2) --- Armored Wheel Armored Wheel > --- UTILITY (2) ------ Large Storage Unit Seismic Detector > --- WEAPON (2) ------- Beam Cannon Barrage Gun > --- INVENTORY (15) --- Cargo Storage Unit Improved Terrain Scanner Rainbow Chip Subdweller Laser Light EM Pulse Cannon Light EM Pulse Cannon Subdweller Machine Gun Improved Light Cannon Grenade Launcher Hammer Peak State ------------ > --- POWER ------------ Ion Engine > --- PROPULSION ------- Armored Wheel Armored Wheel > --- UTILITY ---------- Large Storage Unit Seismic Detector > --- WEAPON ----------- Beam Cannon Barrage Gun > --- INVENTORY -------- Cargo Storage Unit Improved Terrain Scanner Rainbow Chip Subdweller Laser Light EM Pulse Cannon Light EM Pulse Cannon Subdweller Machine Gun Improved Light Cannon Grenade Launcher Hammer [Rating: 14] Favorites ----------- Power Ion Engine Engine Ion Engine Propulsion Light Treads Treads Light Treads Wheel Armored Wheel Utility Seismic Detector Device Seismic Detector Storage Large Storage Unit Weapon Improved Light Cannon Energy Gun Small Laser Energy Cannon Beam Cannon Ballistic Gun Assault Rifle Ballistic Cannon Improved Light Cannon Impact Weapon Hammer Build | -11 -10 -10 -10 ------- Run | Yrd Mat Min Sub Slots Evolved . | . . . . Power . | . . . . Propulsion . | . . . . Utility . | . . . . Weapon . | . . . . Parts Attached 17 | 7 5 1 4 Power 2 | 1 . 1 . Engine 2 | 1 . 1 . Core . | . . . . Reactor . | . . . . Propulsion 4 | 2 . . 2 Treads 2 | 2 . . . Leg . | . . . . Wheel 2 | . . . 2 Hover . | . . . . Flight . | . . . . Utility 4 | 2 2 . . Device 1 | 1 . . . Storage 3 | 1 2 . . Processor . | . . . . Hackware . | . . . . Protection . | . . . . Artifact . | . . . . Weapon 7 | 2 3 . 2 Energy Gun 1 | 1 . . . Energy Cannon 1 | . . . 1 Ballistic Gun 2 | 1 . . 1 Ballistic Cannon 2 | . 2 . . Launcher . | . . . . Special Weapon . | . . . . Impact Weapon 1 | . 1 . . Slashing Weapon . | . . . . Piercing Weapon . | . . . . Special Melee Weapon . | . . . . Unidentified Prototypes . | . . . . Parts Lost 4 | . . 1 3 Power 1 | . . 1 . Propulsion 2 | . . . 2 Utility . | . . . . Weapon 1 | . . . 1 Highest Loss Streak 2 | . . 1 2 To Critical Strikes . | . . . . Average Backups 8 | 4 8 9 9 Power . | 1 1 . . Propulsion 1 | 1 2 2 . Utility 1 | . 1 2 2 Weapon 4 | 1 3 5 6 Tool/Special . | . . . . Unused Backups 12 | . 4 . 8 Power . | . . . . Propulsion 2 | . 2 . . Utility 3 | . . . 3 Weapon 7 | . 2 . 5 Tool/Special . | . . . . Average Slot Usage (%) 98 | . 100 100 97 Engine 14 | . 14 14 14 Treads 19 | . 28 28 9 Wheel 7 | . . . 15 Device 14 | . 14 14 14 Storage 14 | . 14 14 14 Energy Cannon 6 | . . . 13 Ballistic Cannon 15 | . 23 28 6 Impact Weapon 4 | . 2 . 7 Peak Build Rating 14 | 7 10 10 14 Average Rating 9 | 5 9 10 10 On Entrance 6 | . 7 10 10 Avg Prop Armor Cover (%) 11 | . . . 11 Naked Turns . | . . . . Heaviest Build 34 | 14 34 34 34 Greatest Support 40 | 40 40 40 40 Greatest Overweight (x) 2 | . . . 2 Average Overweight (x) . | . . . 1 Largest Inventory Capacity 15 | 8 15 15 15 Average Capacity 12 | 7 10 15 15 Most Carried 12 | 7 11 11 12 Average Carried 9 | 4 8 10 10 Final Capacity 15 | 8 15 15 15 Final Carried 11 | 6 11 10 11 Class Distribution -------------------- 100% | Mutant Dominant Class ---------------- Mutant | -10/Materials Mutant | -10/Mines Mutant | -10/Subcaves Resources | -11 -10 -10 -10 ----------- Run | Yrd Mat Min Sub Matter Collected 510 | 321 44 81 64 Remotely . | . . . . Salvage Created 444 | 214 108 79 43 Parts 28 | 16 4 2 6 Haulers Intercepted . | . . . . Recyclers Shooed . | . . . . Parts Field Recycled . | . . . . Retrieved Matter . | . . . . Parts Self-Destructed 9 | . . . 9 Prevented . | . . . . Parts Restored . | . . . . Kills | -11 -10 -10 -10 ------- Run | Yrd Mat Min Sub Combat Hostiles Destroyed 9 | . 2 4 3 Cannons 9 | . 2 4 3 Classes Destroyed 5 | 2 1 . 2 Tunneler 6 | 6 . . . Recycler 2 | 1 1 . . Swarmer 1 | . . . 1 Grunt 6 | . 2 4 . Subdweller 2 | . . . 2 Best Kill Streak 3 | 2 2 3 1 Combat Bots Only 3 | . 2 3 1 Max Kills in Single Turn 1 | 1 1 1 1 Gunslinging . | . . . . Exploded . | . . . . Melee . | . . . . Uniques/NPCs Destroyed . | . . . . Combat | -11 -10 -10 -10 -------- Run | Yrd Mat Min Sub Hostile Shots Fired 79 | . 6 51 22 Missed 11 | . 1 6 4 Hits 68 | . 5 45 18 Projectile 68 | . 5 45 18 Damage Taken 1097 | . 67 587 443 Core 251 | . 40 61 150 Absorbed by Shields . | . . . . Core Remaining (%) 100 | 100 . . . Volleys Fired 69 | 17 23 15 14 Largest 2 | 2 2 2 2 Hottest 93 | 60 66 66 93 Shots Fired 128 | 34 36 30 28 Gun 35 | 34 . . 1 Cannon 93 | . 36 30 27 Launcher . | . . . . Special . | . . . . Kinetic 99 | 17 36 30 16 Thermal 29 | 17 . . 12 Explosive . | . . . . Electromagnetic . | . . . . Robot Hit Streak 9 | 5 7 8 9 Robot Miss Streak 2 | 2 . 2 2 Penetration Max . | . . . . Secondary Targets . | . . . . Shots Hit Robots 70 | 24 5 21 20 Core Hits 22 | 8 3 6 5 Critical Kills . | . . . . Critical Parts Destroyed . | . . . . Critical Strikes . | . . . . Melee Attacks 29 | . 5 . 24 Impact 29 | . 5 . 24 Slashing . | . . . . Piercing . | . . . . Sneak Attacks . | . . . . Combat Hostiles . | . . . . Follow-up Attacks . | . . . . Damage Inflicted 1237 | 289 109 445 394 Guns 289 | 289 . . . Cannons 936 | . 99 443 394 Explosions . | . . . . Melee . | . . . . Ramming 12 | . 10 2 . Kinetic 921 | 125 99 443 254 Thermal 304 | 164 . . 140 Explosive . | . . . . Electromagnetic . | . . . . Impact . | . . . . Slashing . | . . . . Piercing . | . . . . Highest Corruption . | . . . . Average Corruption . | . . . . Corruption Purged . | . . . . Corruption Blocked . | . . . . Overload Shots . | . . . . Overflow Damage . | . . . . Projectiles . | . . . . Explosions . | . . . . Melee . | . . . . Knockbacks 4 | . 1 1 2 Impact . | . . . . Kinetic 4 | . 1 1 2 Secondary . | . . . . Self-Inflicted Damage . | . . . . Shots . | . . . . Rammed 2 | . 1 1 . Targets Rammed 3 | . 2 1 . Kicked . | . . . . Crushed 1 | . 1 . . Highest Temperature 281 | . 48 281 8 Average Temperature 100 | . 22 153 6 Received Heat Transfer 399 | . 42 327 30 Effects 2 | . . 2 . Interference 2 | . . 2 . Siege Activations . | . . . . Martial Activations . | . . . . Shielding Activations . | . . . . Robots Disrupted . | . . . . Combat Hostiles . | . . . . Robots Corrupted . | . . . . Combat Hostiles . | . . . . Parts Fried . | . . . . Impact Corruptions . | . . . . Robots Melted . | . . . . Combat Hostiles . | . . . . Parts Melted . | . . . . Heat Transferred 671 | 375 . . 296 Parts Sabotaged . | . . . . Parts Stolen . | . . . . Parts Stripped . | . . . . Power Chain Reactions . | . . . . Alert | -11 -10 -10 -10 ------- Run | Yrd Mat Min Sub Maximum Alert Level . | . . . . Low Security (%) 100 | 100 100 100 . Level 1 . | . . . . Level 2 . | . . . . Level 3 . | . . . . Level 4 . | . . . . Level 5 . | . . . . High Security . | . . . . Max Security . | . . . . Peak Influence 71 | 10 40 71 . Initial . | . . . . Average 6 | 1 3 34 . Influence Increases 237 | 35 81 101 20 Destroy 0b10 Robot/C 140 | . 40 80 20 Destroy 0b10 Robot/NC 40 | 35 5 . . Destroy Leader 30 | . 10 20 . Successful Hack 19 | . 19 . . Destroy Structure 8 | . 7 1 . Influence Decreases 223 | 35 81 80 27 Entered New Map 12 | . . . 12 Time Decay 201 | 35 81 70 15 Lost Part 10 | . . 10 . Squads Dispatched 1 | . 1 . . Investigation . | . . . . Extermination . | . . . . Reinforcement 1 | . 1 . . Assault . | . . . . Garrison . | . . . . Intercept . | . . . . Searches Triggered . | . . . . Construction Impeded . | . . . . Haulers Reinforced . | . . . . Active Scanning Responses . | . . . . Cargo Convoy Interrupts . | . . . . Stealth | -11 -10 -10 -10 --------- Run | Yrd Mat Min Sub Distress Signals . | . . . . Communications Jammed . | . . . . Distress Signals . | . . . . Times Spotted 18 | . 6 4 8 Peak Tracking Total 3 | . 3 3 2 Tactical Retreats 1 | . . . 1 Traps | -11 -10 -10 -10 ------- Run | Yrd Mat Min Sub Traps Triggered 2 | . . . 2 Indirectly . | . . . . Trap Hack Attempts . | . . . . Triggered . | . . . . Disarmed . | . . . . Reprogrammed . | . . . . Reused . | . . . . Traps Extracted . | . . . . Installed . | . . . . Triggered . | . . . . Machines | -11 -10 -10 -10 ---------- Run | Yrd Mat Min Sub Machines Disabled 1 | . . . 1 Max in Single Turn 1 | . . . 1 Machines Repaired . | . . . . Machines Dismantled . | . . . . Machines Sabotaged . | . . . . Overloaded Fab Kills . | . . . . Hacking | -11 -10 -10 -10 --------- Run | Yrd Mat Min Sub Machines Accessed 4 | . 3 . 1 Terminals 3 | . 3 . . Fabricators . | . . . . Repair Stations . | . . . . Recycling Units . | . . . . Scanalyzers . | . . . . Garrison Access . | . . . . Total Hacks 14 | . 13 . 1 Successful 6 | . 5 . 1 Failed 7 | . 7 . . Catastrophic 1 | . 1 . . Database Lockouts 1 | . 1 . . Manual 6 | . 6 . . Terminals 13 | . 13 . . Fabricators . | . . . . Repair Stations . | . . . . Recycling Units . | . . . . Scanalyzers . | . . . . Garrison Access . | . . . . Terminal Hacks 6 | . 5 . 1 Robot Analysis 1 | . 1 . . Prototype ID Bank 1 | . 1 . . Locate Traps 2 | . 2 . . Zone Layout 1 | . 1 . . Proto ID Catalog 1 | . . . 1 Fabricator Hacks . | . . . . Repair Station Hacks . | . . . . Recycling Unit Hacks . | . . . . Scanalyzer . | . . . . Garrison Access Hacks . | . . . . Unauthorized Hacks . | . . . . Terminals . | . . . . Fabricators . | . . . . Repair Stations . | . . . . Recycling Units . | . . . . Scanalyzers . | . . . . Garrison Access . | . . . . Data Cores Recovered . | . . . . Used . | . . . . Hacking Detections 2 | . 2 . . Full Trace Events 1 | . 1 . . Feedback Events . | . . . . Feedback Blocked . | . . . . Robot Schematics Acquired . | . . . . Robots Built . | . . . . Authchips . | . . . . Time . | . . . . Total Robot Build Rating . | . . . . Part Schematics Acquired . | . . . . Parts Built . | . . . . Authchips . | . . . . Time . | . . . . Total Part Build Rating . | . . . . Part Studies Acquired . | . . . . Parts Repaired . | . . . . Time . | . . . . Parts Recycled . | . . . . Recycled Matter . | . . . . Retrieved Matter . | . . . . Retrieved Components . | . . . . Parts Scanalyzed . | . . . . Part Schematics Acquired . | . . . . Parts Damaged . | . . . . Bothacking | -11 -10 -10 -10 ------------ Run | Yrd Mat Min Sub Used RIF Installer . | . . . . Robots Hacked . | . . . . Non-combat . | . . . . Combat . | . . . . Robot Hacks Applied . | . . . . Relay Couplers Released . | . . . . Fabnet Peak Effective % . | . . . . Robots Rewired . | . . . . Allies Hacked . | . . . . Hacks Repelled . | . . . . Allies | -11 -10 -10 -10 -------- Run | Yrd Mat Min Sub Total Allies . | . . . . Largest Group . | . . . . Highest-Rated Group . | . . . . Highest-Rated Ally . | . . . . Total Orders . | . . . . Ally Attacks . | . . . . Total Damage . | . . . . Kills . | . . . . Allies Corrupted . | . . . . Allies Melted . | . . . . Intel | -11 -10 -10 -10 ------- Run | Yrd Mat Min Sub Active Infowar (turns) 1785 | 17 753 148 867 Seismic 1785 | 17 753 148 867 Robot Analysis Total 1 | . 1 . . Derelict Logs Recovered 1 | . . 1 . Drone Launches . | . . . . Drone Recoveries . | . . . . Exploration | -11 -10 -10 -10 ------------- Run | Yrd Mat Min Sub Turns Passed 2052 | 284 753 148 867 Spaces Moved 1146 | 137 400 61 548 Core 8 | 8 . . . Treads 599 | 129 400 61 9 Legs . | . . . . Wheels 539 | . . . 539 Hover . | . . . . Flight . | . . . . Fastest Speed 50 | 50 160 160 105 Average Speed 138 | 153 160 160 117 Slowest Speed 240 | 160 160 160 240 Overloaded Moves . | . . . . Propulsion Burnouts . | . . . . Robots Hopped . | . . . . Potential Cave-ins . | . . . . Cave-ins Triggered . | . . . . Exploration Rate (%) 25 | 8 48 13 33 Regions Visited 3 Branch Regions 2 Pre-discovered Areas 1 | . . . 1 Known Exits Taken . | . . . . Unknown Exits Taken 3 | 1 1 1 . Scrap Searched . | . . . . Spaces Dug 14 | . 7 . 7 Terrain Destroyed 15 | . 7 1 7 Melee 11 | . 4 . 7 Projectile 4 | . 3 1 . AOE . | . . . . Terrain Rammed . | . . . . Walls Destroyed . | . . . . Machines Disabled . | . . . . Actions | -11 -10 -10 -10 --------- Run | Yrd Mat Min Sub Total 1426 | 175 470 81 700 Wait 133 | 6 18 4 105 Move 1143 | 136 399 60 548 Hop . | . . . . Pick Up 21 | 9 8 . 4 Fast Attach 6 | 4 2 . . Attach 7 | 3 . 1 3 Detach 1 | . 1 . . Swap 6 | . 4 . 2 Drop 8 | . 8 . . Fire 69 | 17 23 15 14 Melee 29 | . 5 . 24 Ram . | . . . . Kick . | . . . . Crush 3 | . 2 1 . Escape Stasis . | . . . . Rewire . | . . . . Trap . | . . . . Miscellaneous . | . . . . Route ------- -11/Scrapyard -10/Materials (discovered 2 exits: [*Mat] / [*Min]) -10/Mines (discovered 2 exits: [*Mat] / *Sub) -10/Subcaves (discovered 2 exits: [*Rec] / [*Scr]) History --------- Turn | Location | Event 4 | -11/Scrapyard | Discovered new exit (range 14) 285 | -11/Scrapyard | Entered Materials 308 | -10/Materials | Build established: Mutant 512 | -10/Materials | Central database locked down 801 | -10/Materials | Discovered new exit (range 4) 1009 | -10/Materials | Discovered new exit (range 7) 1038 | -10/Materials | Entered Mines 1109 | -10/Mines | Learned Materials machine intel 1111 | -10/Mines | Discovered new exit (range 10) 1144 | -10/Mines | Discovered new exit (range 8) 1186 | -10/Mines | Entered Subcaves 1187 | -10/Subcaves | Approached by a straggling Scientist 1210 | -10/Subcaves | Core integrity fell below 50% 1315 | -10/Subcaves | Learned location of Zion (-7) 1315 | -10/Subcaves | Met a Zionite searching for "candidates" 1472 | -10/Subcaves | Shifting Twisted Machinery released Flamer 1557 | -10/Subcaves | Shifting Twisted Machinery released Barrage Gun 1652 | -10/Subcaves | Visited 4L-MR0's lab 1664 | -10/Subcaves | Found Prototype Processor 1668 | -10/Subcaves | Identified Rainbow Chip 1785 | -10/Subcaves | Shifting Twisted Machinery released Flamer 1788 | -10/Subcaves | Shifting Twisted Machinery released Mak. System Restoration Module 1797 | -10/Subcaves | Core integrity fell below 20% 2050 | -10/Subcaves | Scientist uncovered a shortcut to Scraptown 2052 | -10/Subcaves | Discovered new exit (range 14) 2053 | -10/Subcaves | Destroyed by S-10 Pest with Light Assault Rifle Last Messages --------------- 01745_ An expanding cloud of shrapnel blasts out in all directions. 01745_ Lgt. Treads destroyed. OP-GKM(c): "I think it's somewhere southwest of here" Flamer falls loose from the Twisted Machinery. Mak. System Restoration Module falls loose from the Twisted Machinery. 01796_ Triggered Shrapnel Trap. 01796_ An expanding cloud of shrapnel blasts out in all directions. OP-GKM(c): "I think it's somewhere southwest of here" OP-GKM(c): "I think it's somewhere west of here" OP-GKM(c): "We're getting close, I can feel it." 02031_ S-10 Pest destroyed. 02034_ Subatomizers dissect the Lgt. Ion Engine. 02035_ Flight Unit fries itself beyond repair. 02036_ Acquired 11 matter. 02048_ Flight Unit fries itself beyond repair. 02048_ Lgt. Assault Rifle fries itself beyond repair. 02049_ Lgt. Ion Engine fries itself beyond repair. 02050_ OP-GKM(c): "Hah, right again, there it is!" 02051_ S-10 Pest destroyed. 02052_ EXIT=FOUND Map ----- +----------------------------------------------------+ | ?????????????????????????????????????????????#### | | ????????????????????????????????????????????????## | | ?????????????????????????????????????????????????# | | ?????????????????????????????????????????????????? | | ????????????????????????????????????????????????## | | ????????????????????????????????????????????????# | | ???????????????????????????????????????????????## | | ??????????????????????????????????????????????## | | ???????????????????????????????????????????#### | | ?????????????????????????????????????????## ## | | ??????????????????????????????????###?##?# #?? | | ?????????????????????????????#????? ?#"## ##? | | ????????????????????????????<#????? ?#" #?? "## | | ???????????????????????????? "?????#"##"# ^##? " # | | ???????????????????????????? " ????#""#### ###" # | | ???????????????????????????? t ????# "### ## # | | ??????????????????????????? ?????# "#"# " | | ??????????????????????????? ?????## """ | | ???????????????????????????&&???????# "" | | ????????????????##????????#%&???????# # " | | ????????????????# #######&&????????## ####" | | ????????????????? # s&"?????????# ##??#" | | ??????????????????? s &????????### ""##?#" | | ????????????????????? s ??###??## ## ""### | | ??????????????????????# > #??#"#### " " ### | | ???????????????????????# @##?#"" """"" ## | | ???????????????????????# ###" "##""### ### | | ????????????????????#### "# "##""#?? ### | | ?????????? ## #### #?? ### | | ?????????? ## ##??# ""# #" | | ?????????? ## #####?? " """" ## | | ???????????## ### #?## ""## """"" "" #? | | ?????????????????#####???# """ ##"" ##? | | ?????????????????????????## ## #??###### ##?? | | ??????????????????????????####??###????????####??? | | ?????????????????????????????????????????????????? | | ?????????????????????????????????????????????????? | | ?????????????????????????????????????????????????? | | ?????????????????????????????????????????????????? | | ?????????????????????????????????????????????????? | | ?????????????????????????????????????????????????? | | ?????????????????????????????????????????????????? | | ?????????????????????????????????????????????????? | | ?????????????????????????????????????????????????? | | ?????????????????????????????????????????????????? | | ?????????????????????????????????????????????????? | | ?????????????????????????????????????????????????? | | ?????????????????????????????????????????????????? | | ?????????????????????????????????????????????????? | | | +----------------------------------------------------+ Best States ------------- Heat Dissipation 25 Energy Generation 10 Energy Capacity 250 Matter Stores 300 Matter Capacity 300 Sight Range 16 Terrain Scan Density 10 Evasion (%) 40 Recoil Reduction 2 Item Schematics ----------------- None Robot Schematics ------------------ None Fabricated ------------ Nothing Repaired ---------- Nothing Studied --------- None Alien Tech Used ----------------- None Achievements -------------- None Challenges ------------ None Game ------ Seed TiamatContainmentRegenerator Manual? 0 Play Time 00:11:21 Cumulative 840.2 hours Start 2025.12.02 @ 21:29:43 End 2025.12.02 @ 21:37:50 Sessions 1 Manual Loads 0 Difficulty Rogue Special Mode None Game No. 847 Rogue 847 Adventurer 0 Explorer 0 Win Type - Total 40 Types 15/4/11/2/0/0/5/2/1/0 Lore% 96 Gallery% 86 Achievement% 65 Wizard Run 0 Options --------- Layout 0 ASCII 0 Keyboard 0 Movement Numpad Keybinds 0 Fullscreen 1 Font 18/Smallcaps Map View 76x50 Zoom Use 0% Tactical HUD 1 Map Filters NONE Filters NONE Steam 1 RUN: 42254418-61ce-4323-af99-d43ef928d29b